lending/lending_fUSD_20240824
["ID","MTS","AMOUNT","RATE_DAILY","PERIOD"]
[335806099,1724497856939,-633.71,0.00024999,5]
[335806101,1724497856948,-633.71,0.00024999,5]
[335806103,1724497856958,-633.71,0.00024999,5]
[335806105,1724497856968,-633.71,0.00024999,5]
[335806107,1724497856977,-633.76522501,0.00024999,5]
[335806109,1724497856987,-500.0,0.00024999,5]
[335806111,1724497856996,-500.0,0.00024999,5]
[335806113,1724497857005,-500.0,0.00024999,5]
[335806115,1724497857014,-500.0,0.00024999,5]
[335806117,1724497857024,-500.0,0.00024999,5]
[335806119,1724497857034,-500.0,0.00024999,5]
[335806121,1724497857043,-250.29126099,0.00024999,5]
[335806123,1724497857052,-500.0,0.00024999,5]
[335806125,1724497857061,-206.213656,0.00024999,5]
[335806127,1724497857070,-500.0,0.00024999,5]
[335806129,1724497857080,-420.21773266,0.00024999,5]
[335806131,1724497857089,-500.0,0.00024999,5]
[335806133,1724497857098,-500.0,0.00024999,5]
[335806135,1724497857108,-500.0,0.00024999,5]
[335806137,1724497857117,-500.0,0.00024999,5]
[335806139,1724497857126,-501.36,0.00024999,5]
[335806141,1724497857136,-500.0,0.00024999,5]
[335806143,1724497857145,-500.0,0.00024999,5]
[335806145,1724497857154,-425.46490214,0.00024999,5]
[335806147,1724497857163,-813.66,0.00024999,5]
[335806149,1724497857172,-813.66,0.00024999,5]
[335806151,1724497857181,-813.66,0.00024999,5]
[335806153,1724497857191,-813.66,0.00024999,5]
[335806155,1724497857200,-813.66,0.00024999,5]
[335806157,1724497857209,-813.66876861,0.00024999,5]
[335806159,1724497857218,-635.3,0.00024999,5]
[335806161,1724497857227,-635.3,0.00024999,5]
[335806163,1724497857236,-635.3,0.00024999,5]
[335806165,1724497857245,-635.3,0.00024999,5]
[335806167,1724497857255,-635.3,0.00024999,5]
[335806169,1724497857264,-635.36674102,0.00024999,5]
[335806171,1724497857273,-500.0,0.00024999,5]
[335806173,1724497857282,-500.0,0.00024999,5]
[335806174,1724497857291,-500.0,0.00024999,5]
[335806176,1724497857300,-500.0,0.00024999,5]
[335806178,1724497857309,-500.0,0.00024999,5]
[335806180,1724497857318,-500.0,0.00024999,5]
[335806182,1724497857328,-500.0,0.00024999,5]
[335806184,1724497857338,-500.0,0.00024999,5]
[335806185,1724497857347,-522.08783715,0.00024999,5]
[335806186,1724497857357,-500.0,0.00024999,2]
[335806187,1724497857367,-500.0,0.00024999,2]
[335806188,1724497857376,-790.99,0.00024999,5]
[335806189,1724497857386,-790.99,0.00024999,5]
[335806190,1724497857395,-790.99,0.00024999,5]
[335806191,1724497857405,-790.99,0.00024999,5]
[335806192,1724497857414,-790.99,0.00024999,5]
[335806193,1724497857423,-790.99,0.00024999,5]
[335806194,1724497857432,-790.99,0.00024999,5]
[335806195,1724497857442,-790.99,0.00024999,5]
[335806196,1724497857451,-790.99,0.00024999,5]
[335806197,1724497857461,-791.16403299,0.00024999,5]
[335806198,1724497857470,-500.0,0.00024999,5]
[335806200,1724497857479,-500.0,0.00024999,5]
[335806202,1724497857489,-575.76581457,0.00024999,5]
[335806204,1724497857499,-1063.67,0.00024999,5]
[335806206,1724497857509,-1063.67,0.00024999,5]
[335806208,1724497857518,-1063.67,0.00024999,5]
[335806210,1724497857527,-1063.67,0.00024999,5]
[335806212,1724497857537,-1063.67,0.00024999,5]
[335806214,1724497857547,-1063.67,0.00024999,5]
[335806216,1724497857557,-1063.67,0.00024999,5]
[335806218,1724497857566,-1063.67,0.00024999,5]
[335806220,1724497857576,-1063.67,0.00024999,5]
[335806222,1724497857585,-1063.70962187,0.00024999,5]
[335806224,1724497857594,-911.07,0.00024999,5]
[335806226,1724497857604,-911.07,0.00024999,5]
[335806228,1724497857613,-911.07,0.00024999,5]
[335806230,1724497857623,-911.07,0.00024999,5]
[335806232,1724497857632,-778.43,0.00024999,5]
[335806234,1724497857642,-911.07,0.00024999,5]
[335806236,1724497857651,-778.43,0.00024999,5]
[335806238,1724497857660,-778.43,0.00024999,5]
[335806240,1724497857669,-778.43,0.00024999,5]
[335806242,1724497857679,-911.07,0.00024999,5]
[335806244,1724497857689,-778.43,0.00024999,5]
[335806245,1724497857701,-911.07,0.00024999,5]
[335806247,1724497857711,-778.43,0.00024999,5]
[335806249,1724497857720,-911.07,0.00024999,5]
[335806252,1724497857730,-778.43,0.00024999,5]
[335806254,1724497857739,-911.19,0.00024999,5]
[335806256,1724497857749,-778.43,0.00024999,5]
[335806258,1724497857759,-778.43,0.00024999,5]
[335806260,1724497857771,-778.47,0.00024999,5]
[335806262,1724497857781,-474041.46354137,0.00025,15]
[335806281,1724497857962,-208762.30438126,0.00025,15]
[335806284,1724497857974,-1404.75547569,0.00025,15]
[335806286,1724497857985,-1206.83348292,0.00025,15]
[335806288,1724497857996,-78079.80296049,0.00025,15]
[335806290,1724497858007,-562.53248212,0.00025,15]
[335806292,1724497858018,-1333.31807868,0.00025,15]
[335806294,1724497858030,-1221.244,0.00025,15]
[335806297,1724497858042,-285.63834519,0.00025,15]
[335806299,1724497858053,-722.9693,0.00025,15]
[335806301,1724497858065,-2777.3915315,0.00025,15]
[335806303,1724497858076,-621.63078751,0.00025,15]
[335806306,1724497858089,-650.0,0.00025,15]
[335806308,1724497858101,-495.55389865,0.00025,15]
[335806310,1724497858114,-587.46169813,0.00025,15]
[335806313,1724497858129,-1275.2531778,0.00025,15]
[335806315,1724497858140,-1748.56626615,0.00025,15]
[335806317,1724497858152,-1467.8621135,0.00025,15]
[335806319,1724497858163,-7146.67611989,0.00025,15]
[335806322,1724497858174,-3752.33025991,0.00025,15]
[335806324,1724497858186,-573.15117029,0.00025,15]
[335806326,1724497858198,-1131.59228596,0.00025,15]
[335806328,1724497858209,-3537.73874138,0.00025,15]
[335806330,1724497858220,-730.55933782,0.00025,15]
[335806333,1724497858236,-500.0,0.00013799,2]
[335806335,1724497858244,-60.58454009,0.00025,15]
[335806337,1724497858255,-1368.05667035,0.00025,15]
[335806339,1724497858266,-2025.26791969,0.00025,15]
[335806341,1724497858277,-1259.96086,0.00025,15]
[335806344,1724497858295,-408.2697894,0.00019199,5]
[335806346,1724497858304,-6396.77599098,0.00025,15]
[335806371,1724497858523,-500.0,0.00010958,2]
[335806373,1724497858533,-500.0,0.00010998,2]
[335806375,1724497858542,-498.47386663,0.00010999,2]
[335806376,1724497858551,-1077.0,0.00013101,2]
[335806378,1724497858560,-500.0,0.00013799,2]
[335806380,1724497858570,-949.97294688,0.00014234,2]
[335806383,1724497858580,-593.53247783,0.00016101,2]
[335806385,1724497858591,-391.22403067,0.00016101,2]
[335806386,1724497858602,-92.2434915,0.00016101,2]
[335806387,1724497858611,-5867.91004832,0.00025,15]
[335806388,1724497858622,-2325.34922941,0.00025,15]
[335806389,1724497858633,-7365.16641705,0.00025,15]
[335806390,1724497858653,-1077.0,0.00019101,2]
[335806391,1724497858662,-209531.87461341,0.00025,15]
[335806392,1724497858673,-56162.05529899,0.00025,15]
[335806393,1724497858686,-968.00000004,0.00025,15]
[335806394,1724497858697,-1727.45592964,0.00025,15]
[335806395,1724497858762,-50518.6417655,0.00025,15]
[335806396,1724497858775,-8515.89,0.00025,15]
[335806397,1724497858787,-40637.43076967,0.00025,15]
[335806398,1724497858799,-11537.57862452,0.00025,15]
[335806399,1724497858813,-308.1,0.00025,15]
[335806400,1724497858825,-127413.72796546,0.00025,15]
[335806401,1724497858835,-13518.15423456,0.00025,2]
[335806402,1724497858850,-664665.6441451,0.00025,2]
[335807290,1724497891352,150.0,0.0002636,120]
[335807296,1724497928207,1050.0,0.0001,2]
[335807297,1724497935903,-1784.5465,0.00010695,2]
[335807298,1724497935932,-300.0,0.00010791,2]
[335807299,1724497935959,-150.0,0.00010791,2]
[335807300,1724497935986,-2555.1923,0.00010792,2]
[335807301,1724497936015,-110983.7579,0.00010792,2]
[335807302,1724497936046,-155.0,0.00010899,2]
[335807303,1724497936072,-500.0,0.00010958,2]
[335807304,1724497936100,-500.0,0.00010958,2]
[335807305,1724497936127,-990.85,0.00010958,2]
[335807306,1724497936154,-498.47,0.00010997,2]
[335807307,1724497936181,-500.0,0.00010998,2]
[335807308,1724497936207,-990.85,0.00010998,2]
[335807309,1724497936238,-500.0,0.00010999,2]
[335807310,1724497936266,-500.0,0.00010999,2]
[335807311,1724497936293,-500.0,0.00010999,2]
[335807312,1724497936320,-500.0,0.00010999,2]
[335807313,1724497936346,-500.0,0.00010999,2]
[335807314,1724497936373,-990.85,0.00010999,2]
[335807315,1724497936400,-990.85,0.00010999,2]
[335807316,1724497936429,-990.85,0.00010999,2]
[335807317,1724497936456,-990.85,0.00010999,2]
[335807318,1724497936483,-990.85,0.00010999,2]
[335807319,1724497950643,500.0,0.00010958,2]
[335807320,1724497950947,500.0,0.00010998,2]
[335807321,1724497951223,500.0,0.00010999,2]
[335807322,1724497951488,500.0,0.00010999,2]
[335807323,1724497951790,203.52,0.00010999,2]
[335807324,1724497957009,2500.0,0.00010792,2]
[335807325,1724497970682,341.16250447,0.00010999,4]
[335807326,1724498070765,150.0,0.00026502,120]
[335807327,1724498129185,265.54939791,0.00010999,2]
[335807328,1724498132064,2379.10233922,0.00010999,2]
[335807330,1724498153770,520.2885343,0.00010999,2]
[335807331,1724498164185,168.79,0.00010959,2]
[335807333,1724498185142,401.92563255,0.00010999,2]
[335807334,1724498187812,203.10130847,0.00010999,2]
[335807335,1724498192788,150.0,0.00026954,120]
[335807336,1724498208648,206.06128228,0.00010999,2]
[335807337,1724498278276,-9280.54150068,0.00011999,2]
[335807338,1724498332645,400.0,0.00026676,120]
[335807340,1724498463217,500.0,0.00010958,2]
[335807341,1724498463476,500.0,0.00010993,2]
[335807342,1724498463786,500.0,0.00010998,2]
[335807343,1724498464092,500.0,0.00010999,2]
[335807344,1724498464399,500.0,0.00010999,2]
[335807345,1724498464708,500.0,0.00010999,2]
[335807346,1724498464994,500.0,0.00010999,2]
[335807347,1724498465278,500.0,0.00010999,2]
[335807348,1724498483295,701.86,0.00010958,2]
[335807349,1724498483571,701.86,0.00010993,2]
[335807350,1724498483887,701.86,0.00010998,2]
[335807351,1724498484192,701.86,0.00010999,2]
[335807352,1724498484477,701.86,0.00010999,2]
[335807353,1724498484869,701.86,0.00010999,2]
[335807354,1724498485131,701.86,0.00010999,2]
[335807355,1724498485800,701.86,0.00010999,2]
[335807356,1724498599555,938.98786624,0.00010999,2]
[335807360,1724498735895,157.13,0.00010959,2]
[335807367,1724498736275,21278.05531702,9.5e-05,2]
[335807372,1724498754195,23684.4815149,6.94e-05,2]
[335807381,1724498760573,300.0,0.00010999,2]
[335807384,1724498763920,155.0,0.00010999,2]
[335807385,1724498790784,150.0,0.00025724,120]
[335807386,1724498817700,29019.9015,0.0001088,2]
[335807409,1724498879394,98737.37192363,0.00010999,2]
[335807410,1724498880611,300.0,0.00010999,2]
[335807413,1724498908327,520.2885343,0.00010999,2]
[335807414,1724498908790,6266.01009604,0.0001,2]
[335807415,1724498940605,300.0,0.00010999,2]
[335807423,1724498967739,206.06128228,0.00010999,2]
[335807430,1724499010223,224.00944642,0.00010999,2]
[335807437,1724499032317,-4603.03995499,0.00011,2]
[335807439,1724499032328,-432.000004,0.00011,2]
[335807441,1724499032367,-15207.38845316,0.00011,2]
[335807442,1724499032379,-389.84087267,0.00011,2]
[335807443,1724499032588,-438.39640314,0.00011,2]
[335807444,1724499032602,-1797.61002149,0.00011,2]
[335807445,1724499032613,-2000.0,0.00011,2]
[335807446,1724499032628,-1601.38575,0.00011,2]
[335807447,1724499032640,-62397.80521639,0.00011,2]
[335807450,1724499032655,-66687.85212053,0.00011,2]
[335807452,1724499032665,-401.44091038,0.00011,2]
[335807454,1724499032676,-250.0,0.00011,2]
[335807456,1724499032688,-562.4996314,0.00011,2]
[335807458,1724499032700,-7517.22981859,0.00011,2]
[335807460,1724499032711,-942.40879585,0.00011,2]
[335807462,1724499032721,-382.31751455,0.00011,2]
[335807464,1724499032732,-3076.67433254,0.00011,2]
[335807466,1724499032744,-290.16336359,0.00011,2]
[335807467,1724499032755,-5649.28327191,0.00011,2]
[335807468,1724499032766,-1350.39273944,0.00011,2]
[335807470,1724499032781,-846.08694448,0.00011,2]
[335807471,1724499032792,-508.11036067,0.00011,2]
[335807474,1724499032803,-6708.88506348,0.00011,2]
[335807476,1724499032814,-889.15149544,0.00011,2]
[335807478,1724499032826,-1796.97418433,0.00011,2]
[335807519,1724499038414,-575.30635287,0.00011,2]
[335807520,1724499038425,-2500.0,0.00011,2]
[335807521,1724499038437,-1235.02261279,0.00011,2]
[335807522,1724499038448,-257.97532986,0.00011,2]
[335807523,1724499038459,-496.0,0.00011,2]
[335807524,1724499038474,-1040.68159826,0.00011,2]
[335807525,1724499038485,-577.7598118,0.00011,2]
[335807526,1724499038496,-716.53939924,0.00011,2]
[335807527,1724499038508,-303.35364713,0.00011,2]
[335807528,1724499038518,-1249.1832568,0.00011,2]
[335807529,1724499038530,-301.11415239,0.00011,2]
[335807530,1724499038541,-5490.24790503,0.00011,2]
[335807531,1724499038552,-304.44414,0.00011,2]
[335807532,1724499038563,-2709.20962988,0.00011,2]
[335807533,1724499038574,-1662.12038026,0.00011,2]
[335807534,1724499038682,-16602.28958187,0.00011,2]
[335807535,1724499038730,-1344.3643011,0.00011,2]
[335807559,1724499040489,-499.9996419,0.00011,2]
[335807560,1724499040501,-6719.0,0.00011,2]
[335807561,1724499040649,-7082.52976569,0.00011,2]
[335807562,1724499040803,-861.50000005,0.00011,2]
[335807563,1724499040815,-422.95610072,0.00011,2]
[335807564,1724499040850,-741.67533999,0.00011,2]
[335807565,1724499040898,-8817.28104593,0.00011,2]
[335807668,1724499042017,454.57,0.00010999,2]
[335807821,1724499043473,-351.60001831,0.00011,2]
[335807834,1724499043589,-438.5695808,0.00011,2]
[335807836,1724499043600,-356.27240172,0.00011,2]
[335807839,1724499043621,-11013.0,0.00011,2]
[335807843,1724499043655,-2335.57778295,0.00011,2]
[335807897,1724499044153,-15249.05049951,0.00011,2]
[335808107,1724499046927,-5819.73189067,0.00011,2]
[335808109,1724499046938,-147196.9578,0.00011,2]
[335808112,1724499046956,-487.0347352,0.00011,2]
[335808114,1724499046967,-6136.3,0.00011,2]
[335808116,1724499046978,-5990.73861914,0.00011,2]
[335808148,1724499068844,4500.0,0.000103,3]
[335808150,1724499070949,9100.0,0.000104,3]
[335808151,1724499070981,515.6476368,0.00010999,2]
[335808153,1724499073056,13700.0,0.000105,3]
[335808154,1724499075212,18300.0,0.000106,3]
[335808155,1724499077323,22800.0,0.000107,3]
[335808156,1724499079520,4500.0,0.000108,3]
[335808157,1724499081606,4500.0,0.000109,3]
[335808159,1724499099344,6604.1805,0.000109,2]
[335808161,1724499110008,4202.2328,0.000109,2]
[335808162,1724499116096,170.17915908,0.00010999,2]
[335808163,1724499120733,300.0,0.00010999,2]
[335808164,1724499125471,1000.0,0.000109,2]
[335808165,1724499135984,1634.9902,0.000109,2]
[335808166,1724499157238,500.0,0.00010999,2]
[335808167,1724499157510,500.0,0.00010999,2]
[335808168,1724499157838,500.0,0.00010999,2]
[335808169,1724499158062,500.0,0.00010999,2]
[335808170,1724499158345,500.0,0.00010999,2]
[335808171,1724499158621,500.0,0.00010999,2]
[335808172,1724499158884,500.0,0.00010999,2]
[335808173,1724499159184,500.0,0.00010999,2]
[335808174,1724499159462,201.01817711,0.00010999,2]
[335808175,1724499169321,500.0,0.00010999,2]
[335808176,1724499169944,500.0,0.00010999,2]
[335808177,1724499170229,500.0,0.00010999,2]
[335808178,1724499170493,500.0,0.00010999,2]
[335808179,1724499170756,500.0,0.00010999,2]
[335808180,1724499171032,500.0,0.00010999,2]
[335808181,1724499171312,500.0,0.00010999,2]
[335808182,1724499171579,500.0,0.00010999,2]
[335808183,1724499171855,500.0,0.00010999,2]
[335808184,1724499172158,500.0,0.00010999,2]
[335808185,1724499172439,500.0,0.00010999,2]
[335808186,1724499172742,500.0,0.00010999,2]
[335808187,1724499173005,500.0,0.00010999,2]
[335808188,1724499173317,593.12197962,0.00010999,2]
[335808189,1724499175826,12209.5491,0.000109,2]
[335808190,1724499181615,300.0,0.00010999,2]
[335808192,1724499185334,150.0,0.00010999,2]
[335808197,1724499190835,520.2885343,0.00010999,2]
[335808198,1724499230201,500.0,0.00010999,2]
[335808199,1724499230347,212.74088138,0.00010999,2]
[335808200,1724499249398,171.48,0.00010959,2]
[335808201,1724499251748,732.4462032,0.00010999,2]
[335808202,1724499256483,144067.4181478,0.00011,4]
[335808203,1724499270743,150.0,0.00026882,120]
[335808210,1724499330828,150.0,0.00026694,120]
[335808211,1724499390769,150.0,0.00026814,120]
[335808235,1724499971759,5000.0,0.00027,120]
[335808238,1724500029753,700.0,0.0001,3]
[335808263,1724500225980,435.46,8.219e-05,2]
[335808298,1724500231726,-572.06978822,0.000101,3]
[335808305,1724500237539,-203.10130847,0.00010097,2]
[335808306,1724500237548,-95.31597521,0.000101,3]
[335808308,1724500237559,-732.61423657,0.000101,3]
[335808309,1724500237568,-1893.1272692,0.00010106,2]
[335808310,1724500237579,-2250.36247396,0.00010106,2]
[335808311,1724500237594,-736.75436809,0.00010106,2]
[335808312,1724500237606,-597.24,0.00010106,2]
[335808313,1724500237617,-4953.41834692,0.00010106,2]
[335808314,1724500237630,-888.51999758,0.00010106,2]
[335808315,1724500237641,-320.05857309,0.00010106,2]
[335808316,1724500237656,-1921.952907,0.00010106,2]
[335808317,1724500237670,-1003.15659616,0.00010106,2]
[335808318,1724500237713,-348.23005832,0.00010106,2]
[335808319,1724500237725,-438.66015654,0.00010106,2]
[335808320,1724500237737,-556.34975306,0.00010106,2]
[335808321,1724500237748,-782.17950008,0.00010106,2]
[335808322,1724500237758,-320.0,0.0001017,2]
[335808323,1724500237768,-237.83228547,0.0001018,2]
[335808324,1724500237780,-12.16771453,0.0001018,2]
[335808325,1724500237790,-2100.0,0.000102,3]
[335808326,1724500237799,-499.27479749,0.000103,3]
[335808327,1724500237811,-379.69662664,0.000103,3]
[335808328,1724500237823,-1921.02857587,0.000103,3]
[335808329,1724500237833,-3500.0,0.000104,3]
[335808330,1724500237842,-435.46,0.00010481,2]
[335808331,1724500237852,-700.0,0.000105,3]
[335808332,1724500237862,-700.0,0.000106,3]
[335808333,1724500237872,-700.0,0.000107,3]
[335808334,1724500237881,-155.0,0.00010713,2]
[335808335,1724500237891,-265.54939791,0.00010713,2]
[335808336,1724500237901,-155.0,0.00010713,2]
[335808337,1724500237910,-700.0,0.000108,3]
[335808338,1724500237920,-520.2885343,0.00010862,2]
[335808339,1724500237929,-531.64305265,0.00010888,2]
[335808341,1724500237940,-206.06128228,0.00010888,2]
[335808343,1724500237949,-694.8001,0.000109,2]
[335808345,1724500237959,-882.0,0.000109,3]
[335808346,1724500237968,-474.56127833,0.000109,2]
[335808348,1724500237978,-338.70850026,0.000109,2]
[335808349,1724500237987,-319.39033542,0.000109,2]
[335808350,1724500237996,-150.0,0.00010959,2]
[335808351,1724500238006,-156.82,0.00010959,2]
[335808352,1724500238015,-250.0,0.00010959,2]
[335808353,1724500238025,-160.78386674,0.00010973,2]
[335808354,1724500238035,-200.0,0.00010973,2]
[335808355,1724500238046,-500.0,0.00010999,2]
[335808356,1724500238055,-500.0,0.00010999,2]
[335808357,1724500238064,-500.0,0.00010999,2]
[335808358,1724500238074,-500.0,0.00010999,2]
[335808359,1724500238083,-500.0,0.00010999,2]
[335808360,1724500238092,-500.0,0.00010999,2]
[335808361,1724500238101,-500.0,0.00010999,2]
[335808362,1724500238111,-603.50706549,0.00010999,2]
[335808363,1724500238119,-500.0,0.00010999,2]
[335808365,1724500238129,-500.0,0.00010999,2]
[335808367,1724500238138,-500.0,0.00010999,2]
[335808369,1724500238147,-500.0,0.00010999,2]
[335808371,1724500238156,-500.0,0.00010999,2]
[335808372,1724500238165,-500.0,0.00010999,2]
[335808373,1724500238174,-500.0,0.00010999,2]
[335808374,1724500238184,-500.0,0.00010999,2]
[335808376,1724500238194,-500.0,0.00010999,2]
[335808378,1724500238204,-500.0,0.00010999,2]
[335808380,1724500238213,-500.0,0.00010999,2]
[335808382,1724500238222,-249.33944901,0.00010999,2]
[335808384,1724500238234,-250.66055099,0.00010999,2]
[335808386,1724500238243,-500.0,0.00010999,2]
[335808388,1724500238252,-500.0,0.00010999,2]
[335808389,1724500238262,-500.0,0.00010999,2]
[335808391,1724500238271,-500.0,0.00010999,2]
[335808393,1724500238281,-500.0,0.00010999,2]
[335808395,1724500238290,-500.0,0.00010999,2]
[335808397,1724500238300,-500.0,0.00010999,2]
[335808399,1724500238309,-500.0,0.00010999,2]
[335808401,1724500238318,-500.0,0.00010999,2]
[335808403,1724500238327,-500.0,0.00010999,2]
[335808405,1724500238337,-229.80145348,0.00010999,2]
[335808407,1724500238347,-500.0,0.00010999,2]
[335808409,1724500238357,-599.03,0.00010999,2]
[335808411,1724500238367,-500.0,0.00010999,2]
[335808413,1724500238377,-317.49242421,0.00010999,2]
[335808415,1724500238386,-505.54,0.00010999,2]
[335808417,1724500238395,-500.0,0.00010999,2]
[335808419,1724500238405,-500.0,0.00010999,2]
[335808421,1724500238414,-177.10380774,0.00010999,2]
[335808423,1724500238423,-348.12545345,0.00010999,2]
[335808425,1724500238432,-770268.62061951,0.00011,2]
[335808427,1724500238441,-6026425.8872588,0.00011,4]
[335808429,1724500238452,-47645.499317,0.00011,4]
[335808431,1724500238463,-280.407,0.00011,4]
[335808433,1724500238475,-5241.13075619,0.00011,4]
[335808435,1724500238486,-1293.44706016,0.00011,4]
[335808561,1724500239707,-449.88234194,0.00011,4]
[335808568,1724500239762,-13042.14392744,0.00011,4]
[335808570,1724500239776,-46374.92915533,0.00011,4]
[335808586,1724500239923,-1520.94187473,0.00011,4]
[335808821,1724500242555,-670.24130306,0.00011,4]
[335808822,1724500242566,-1579.72210345,0.00011,4]
[335808823,1724500242610,-1594538.63845214,0.00011,4]
[335808824,1724500242622,-1542.13728016,0.00011,4]
[335808825,1724500242665,-23028.69979741,0.00011,4]
[335808826,1724500242676,-695.84866301,0.00011,4]
[335808827,1724500242687,-489.29187735,0.00011,4]
[335808828,1724500242698,-1186.17584361,0.00011,4]
[335808829,1724500242709,-1130.77964873,0.00011,4]
[335808830,1724500242720,-3358.97012989,0.00011,4]
[335808831,1724500242731,-3799.999993,0.00011,4]
[335808832,1724500242743,-2743.43994,0.00011,4]
[335808833,1724500242754,-1269.9797806,0.00011,4]
[335808834,1724500242765,-835.04991627,0.00011,4]
[335808835,1724500242776,-2042.89039837,0.00011,4]
[335808836,1724500242793,-5797.7866457,0.00011,4]
[335809015,1724500245470,-206.06128228,0.00010862,2]
[335809016,1724500245479,-103.93871772,0.00011,4]
[335809017,1724500245491,-3348.50149363,0.00011,4]
[335809018,1724500245502,-15539.40003336,0.00011,4]
[335809019,1724500245515,-9831.76687634,0.00011,4]
[335809020,1724500245528,-7036.33453213,0.00011,4]
[335809021,1724500245539,-4511.90414,0.00011,4]
[335809022,1724500245550,-1650.24238056,0.00011,4]
[335809023,1724500245561,-513.65999993,0.00011,4]
[335809024,1724500245630,-315.79999999,0.00011,4]
[335809025,1724500245642,-694.8001,0.00011,4]
[335809026,1724500245788,-495.15,0.00011,4]
[335809102,1724500289044,700.0,0.0001,3]
[335809127,1724500680098,10000.0,0.00027,120]
[335809130,1724500699625,3110.37,9.969e-05,2]
[335809132,1724500710951,417.73,8.219e-05,2]
[335809133,1724500739929,250.0,9.896e-05,2]
[335809134,1724500777488,500.0,9.895e-05,2]
[335809135,1724500886134,539.13,9.919e-05,2]
[335809137,1724500922204,200.0,0.00024555,120]
[335809139,1724500970665,25000.0,0.00027,120]
[335809141,1724501052390,698.27,9.889e-05,2]
[335809156,1724501248130,700.0,0.0001,3]
[335809159,1724501311753,1000.0,9.87e-05,2]
[335809198,1724501431742,-180.0,0.00010027,2]
[335809199,1724501431752,-878.59,0.00010037,2]
[335809200,1724501431761,-196.53,0.00010042,2]
[335809201,1724501431771,-1193.8058045,0.000101,3]
[335809202,1724501431783,-206.1941955,0.000101,3]
[335809203,1724501431794,-2100.0,0.000102,3]
[335809204,1724501431803,-2800.0,0.000103,3]
[335809205,1724501431813,-3500.0,0.000104,3]
[335809206,1724501431822,-9280.54150068,0.00010471,2]
[335809207,1724501431832,-499.99,0.000105,2]
[335809208,1724501431842,-700.0,0.000105,3]
[335809209,1724501431852,-4305.3,0.000105,2]
[335809210,1724501431861,-203.10130847,0.00010566,2]
[335809211,1724501431871,-700.0,0.000106,3]
[335809212,1724501431881,-700.0,0.000107,3]
[335809213,1724501431891,-269.05621551,0.00010713,2]
[335809214,1724501431901,-402.17727663,0.00010713,2]
[335809215,1724501431910,-700.0,0.000108,3]
[335809216,1724501431920,-520.2885343,0.00010852,2]
[335809217,1724501431929,-317.02826399,0.00010861,2]
[335809218,1724501431939,-500.0,0.00010862,2]
[335809219,1724501431949,-502.0,0.00010862,2]
[335809220,1724501431964,-153.18864,0.0001089,2]
[335809221,1724501431977,-743.06186494,0.0001089,2]
[335809222,1724501431987,-949.97294688,0.0001089,2]
[335809223,1724501431998,-155.0,0.0001089,2]
[335809224,1724501432008,-155.28198435,0.0001089,2]
[335809226,1724501432018,-311.9837,0.00010899,2]
[335809228,1724501432028,-150.0,0.00010899,2]
[335809230,1724501432039,-320.30056243,0.00010899,2]
[335809232,1724501432049,-5984.2778,0.000109,2]
[335809233,1724501432059,-12203.5122,0.000109,2]